bitfinex-derivatives/quotes_BTCF0:USTF0_20250322
["timestamp","ask_amount","ask_price","bid_price","bid_amount"]
[1742606105801,0.121586,84359.0,84358.0,0.28142558]
[1742606106098,0.124586,84359.0,84358.0,0.28142558]
[1742606106294,0.157586,84359.0,84358.0,0.28142558]
[1742606106485,0.157586,84359.0,84358.0,0.24992558]
[1742606106691,0.157586,84359.0,84358.0,0.08326583]
[1742606107195,0.157586,84359.0,84358.0,0.01526765]
[1742606107400,0.1185986,84350.0,84347.0,0.1186028]
[1742606107696,0.1185986,84350.0,84349.0,0.21373423]
[1742606107897,0.1198786,84350.0,84349.0,0.21373423]
[1742606108104,0.1198786,84350.0,84335.0,0.0319]
[1742606108105,0.1186043,84346.0,84331.0,0.11524]
[1742606108293,0.1186071,84344.0,84343.0,0.28383969]
[1742606108592,0.1186141,84339.0,84338.0,0.25507878]
[1742606108798,0.48097411,84339.0,84338.0,0.25507878]
[1742606108987,0.51207411,84339.0,84338.0,0.25507878]
[1742606109800,0.51207411,84339.0,84338.0,0.25807878]
[1742606110802,0.1186197,84335.0,84334.0,0.00017786]
[1742606110998,0.23545971,84335.0,84334.0,0.00017786]
[1742606111191,0.1186394,84321.0,84320.0,0.0593204]
[1742606111387,0.12027941,84321.0,84320.0,0.0329]
[1742606111592,0.51137941,84321.0,84320.0,0.0329]
[1742606111886,0.57317941,84321.0,84320.0,0.1515408]
[1742606112086,0.45454001,84321.0,84320.0,0.1515408]
[1742606112294,0.18207941,84321.0,84320.0,0.16590301]
[1742606112500,0.18207941,84321.0,84320.0,0.19590301]
[1742606112898,0.18207941,84321.0,84320.0,0.19990301]
[1742606112899,0.18307941,84321.0,84320.0,0.19990301]
[1742606114702,0.18407941,84321.0,84320.0,0.20090301]
[1742606114903,0.00364001,84321.0,84320.0,0.20090301]
[1742606115202,0.002,84321.0,84320.0,0.20090301]
[1742606116401,0.1169881,84327.0,84326.0,0.1186324]
[1742606116701,0.11854811,84327.0,84326.0,0.4794324]
[1742606116997,0.11854811,84327.0,84326.0,0.5760324]
[1742606117805,0.11954811,84327.0,84326.0,0.5770324]
[1742606118098,0.00256001,84327.0,84326.0,0.5770324]
[1742606118307,0.001,84327.0,84326.0,0.5770324]
[1742606118494,0.002,84327.0,84326.0,0.5820324]
[1742606119189,0.00356001,84327.0,84326.0,0.5820324]
[1742606119390,0.002,84327.0,84326.0,0.6975124]
[1742606119596,0.120631,84327.0,84326.0,0.6975124]
[1742606119798,0.12219101,84327.0,84326.0,0.6975124]
[1742606120097,0.00356001,84327.0,84326.0,0.6975124]
[1742606120299,0.002,84327.0,84326.0,0.6975124]
[1742606122703,0.002,84327.0,84326.0,0.6977524]
[1742606124799,0.0593024,84346.0,84345.0,0.1186029]
[1742606125006,0.23877751,84346.0,84345.0,0.1186029]
[1742606125402,0.23877751,84346.0,84345.0,0.1832029]
[1742606126298,0.23877751,84346.0,84345.0,0.1842029]
[1742606126498,0.23877751,84346.0,84345.0,0.19878703]
[1742606126694,0.23877751,84346.0,84345.0,0.19978703]
[1742606130209,0.06086241,84346.0,84345.0,0.19978703]
[1742606130504,0.0315,84348.0,84345.0,0.19978703]
[1742606130505,0.1501018,84348.0,84347.0,0.1186029]
[1742606130801,0.15170181,84348.0,84347.0,0.1186029]
[1742606131005,0.18190181,84348.0,84347.0,0.1806029]
[1742606131398,0.00160001,84348.0,84347.0,0.1806029]
[1742606131600,0.1186012,84349.0,84348.0,0.1186015]
[1742606131804,0.12020121,84349.0,84348.0,0.1806015]
[1742606132107,0.12028121,84349.0,84348.0,0.1806015]
[1742606133709,0.15068121,84349.0,84348.0,0.1806015]
[1742606133912,0.15068121,84349.0,84348.0,0.062]
[1742606134110,0.18098121,84349.0,84348.0,0.062]
[1742606134404,0.18098121,84349.0,84348.0,0.1816015]
[1742606139913,0.18098121,84349.0,84348.0,0.063]
[1742606140117,0.18098121,84349.0,84348.0,0.1816015]
[1742606141411,0.18098121,84349.0,84348.0,0.1508015]
[1742606142110,0.18098121,84349.0,84348.0,0.0322]
[1742606142318,0.18098121,84349.0,84348.0,0.1508015]
[1742606142619,0.18098121,84349.0,84348.0,0.0322]
[1742606142819,0.18098121,84349.0,84348.0,0.001]
[1742606143921,0.18098121,84349.0,84348.0,0.00031349]
[1742606146426,0.18098121,84349.0,84348.0,0.06551349]
[1742606147716,0.18098121,84349.0,84348.0,0.01787925]
[1742606151223,0.1186043,84346.0,84345.0,0.01458413]
[1742606151525,0.1186099,84342.0,84341.0,0.0646]
[1742606151720,0.12016991,84342.0,84341.0,0.0319]
[1742606151922,0.18296991,84342.0,84341.0,0.0319]
[1742606152530,0.18296991,84342.0,84341.0,0.04616603]
[1742606153230,0.18296991,84342.0,84341.0,0.16777733]
[1742606153721,0.18296991,84342.0,84341.0,0.19837733]
[1742606155131,0.18296991,84342.0,84341.0,0.07976603]
[1742606157532,0.18296991,84342.0,84341.0,0.04916603]
[1742606157933,0.18296991,84342.0,84341.0,0.0349]
[1742606158130,0.0593127,84331.0,84325.0,0.0327]
[1742606158338,0.1186324,84326.0,84325.0,0.0324]
[1742606158637,0.12019241,84326.0,84325.0,0.01820717]
[1742606158839,0.1186338,84325.0,84319.0,0.0307]
[1742606159130,0.12027381,84325.0,84319.0,0.0307]
[1742606159344,0.18477381,84325.0,84319.0,0.0307]
[1742606159737,0.18477381,84325.0,84324.0,0.3795074]
[1742606159927,0.18577381,84325.0,84324.0,0.3815074]
[1742606160235,0.18577381,84325.0,84324.0,0.3628]
[1742606160434,0.30145381,84325.0,84324.0,0.3628]
[1742606160731,0.30145381,84325.0,84324.0,0.002]
[1742606161927,0.30245381,84325.0,84324.0,0.004]
[1742606162129,0.30245381,84325.0,84324.0,0.0368]
[1742606163137,0.30245381,84325.0,84324.0,0.004]
[1742606164739,0.30245381,84325.0,84324.0,0.0664]
[1742606168144,0.12227381,84325.0,84324.0,0.0664]
[1742606168343,0.12227381,84325.0,84324.0,0.1850352]
[1742606168545,0.12227381,84325.0,84324.0,0.2171352]
[1742606176051,0.15527381,84325.0,84324.0,0.2171352]
[1742606176550,0.18527381,84325.0,84324.0,0.2171352]
[1742606182452,0.18527381,84325.0,84324.0,0.0985]
[1742606182651,0.18527381,84325.0,84324.0,0.0664]
[1742606186358,0.18527381,84325.0,84324.0,0.01606462]
[1742606186853,0.1186366,84323.0,84322.0,0.01783015]
[1742606187056,0.118638,84322.0,84321.0,0.0313]
[1742606187249,0.18319801,84322.0,84321.0,0.0313]
[1742606187549,0.18319801,84322.0,84321.0,0.04997148]
[1742606187753,0.18319801,84322.0,84321.0,0.01867148]
[1742606188050,0.1186451,84317.0,84316.0,0.00017786]
[1742606188243,0.12024511,84317.0,84316.0,0.00017786]
[1742606188448,0.18204511,84317.0,84316.0,0.00017786]
[1742606188849,0.18204511,84317.0,84316.0,0.11882436]
[1742606189446,0.18204511,84317.0,84316.0,0.18302436]
[1742606190057,0.18204511,84317.0,84316.0,0.20100485]
[1742606190448,0.18304511,84317.0,84316.0,0.20100485]
[1742606190852,0.18404511,84317.0,84316.0,0.20100485]
[1742606192559,0.18404511,84317.0,84316.0,0.08235835]
[1742606194954,0.18404511,84317.0,84316.0,0.20100485]
[1742606195954,0.18404511,84317.0,84316.0,0.08235835]
[1742606196362,0.18404511,84317.0,84316.0,0.20100485]
[1742606199359,0.18404511,84317.0,84316.0,0.08235835]
[1742606199762,0.18404511,84317.0,84316.0,0.05035835]
[1742606199964,0.21604511,84317.0,84316.0,0.05035835]
[1742606200355,0.18404511,84317.0,84316.0,0.05035835]
[1742606200554,0.18404511,84317.0,84316.0,0.08105835]
[1742606201068,0.18404511,84317.0,84316.0,0.19970485]
[1742606204375,0.12224511,84317.0,84316.0,0.19970485]
[1742606204768,0.15224511,84317.0,84316.0,0.19970485]
[1742606204969,0.18274511,84317.0,84316.0,0.19970485]
[1742606209769,0.18274511,84317.0,84316.0,0.08105835]
[1742606209968,0.18274511,84317.0,84316.0,0.19970485]
[1742606210172,0.18274511,84317.0,84316.0,0.08105835]
[1742606210762,0.18274511,84317.0,84316.0,0.19970485]
[1742606216570,0.18274511,84317.0,84316.0,0.56050485]
[1742606220688,0.06410001,84317.0,84316.0,0.56050485]
[1742606221089,0.18274511,84317.0,84316.0,0.56050485]
[1742606221486,0.15224511,84317.0,84316.0,0.56050485]
[1742606222100,0.18494511,84317.0,84316.0,0.56050485]
[1742606223201,0.15224511,84317.0,84316.0,0.56050485]
[1742606223501,0.00360001,84317.0,84316.0,0.56050485]
[1742606223686,8e-05,84318.0,84317.0,0.1186451]
[1742606223890,0.1502394,84324.0,84323.0,0.1186366]
[1742606224090,0.21111831,84324.0,84323.0,0.1186366]
[1742606224290,0.21111831,84324.0,84323.0,0.2124366]
[1742606225787,0.21211831,84324.0,84323.0,0.2124366]
[1742606226792,0.21311831,84324.0,84323.0,0.2154366]
[1742606227689,0.21311831,84324.0,84323.0,0.5762366]
[1742606232704,0.03516001,84324.0,84323.0,0.5762366]
[1742606232907,0.0336,84324.0,84323.0,0.5762366]
[1742606233406,0.1522352,84324.0,84323.0,0.5762366]
[1742606233599,0.15379521,84324.0,84323.0,0.5762366]
[1742606235614,0.18679521,84324.0,84323.0,0.5762366]
[1742606272539,0.18679521,84324.0,84323.0,0.2154366]
[1742606272739,0.18679521,84324.0,84323.0,0.5762366]
[1742606274837,0.18679521,84324.0,84323.0,0.2154366]
[1742606275043,0.18679521,84324.0,84323.0,0.5762366]
[1742606280253,0.06816001,84324.0,84323.0,0.5762366]
[1742606280542,0.06524315,84339.0,84332.0,0.118624]
[1742606280746,0.00133786,84333.0,84332.0,0.480584]
[1742606280936,0.00017786,84333.0,84332.0,0.480584]
[1742606281947,0.11880046,84333.0,84332.0,0.480584]
[1742606282148,0.11880046,84333.0,84332.0,0.543884]
[1742606283251,0.11992047,84333.0,84332.0,0.544884]
[1742606283749,0.18622047,84333.0,84332.0,0.548884]
[1742606287948,0.18622047,84333.0,84332.0,0.518484]
[1742606288147,0.18622047,84333.0,84332.0,0.39986]
[1742606288349,0.18622047,84333.0,84332.0,0.36696]
[1742606288853,0.18622047,84333.0,84332.0,0.485584]
[1742606289450,0.18622047,84333.0,84332.0,0.00616]
[1742606289855,0.18622047,84333.0,84332.0,0.124784]
[1742606293668,0.54702047,84333.0,84332.0,0.124784]
[1742606294059,0.54702047,84333.0,84332.0,0.00616]
[1742606294363,0.54702047,84333.0,84332.0,0.00061742]
[1742606295162,0.0593163,84326.0,84304.0,0.2470351]
[1742606295358,0.1186437,84318.0,84317.0,0.032]
[1742606295563,0.11976371,84318.0,84317.0,0.032]
[1742606295975,0.18076371,84318.0,84317.0,0.0326]
[1742606296471,0.18076371,84318.0,84317.0,0.0006]
[1742606296667,0.1186451,84317.0,84313.0,0.032]
[1742606296870,0.11976511,84317.0,84316.0,0.01875835]
[1742606297074,0.18076511,84317.0,84316.0,0.01875835]
[1742606297770,0.18176511,84317.0,84316.0,0.13740485]
[1742606297971,0.18276511,84317.0,84316.0,0.20120485]
[1742606298275,0.18276511,84317.0,84316.0,0.08255835]
[1742606302074,0.2373469,84299.0,84298.0,0.1186624]
[1742606302262,0.23846691,84299.0,84298.0,0.353206]
[1742606302460,0.23846691,84299.0,84298.0,0.237926]
[1742606303169,0.23846691,84299.0,84298.0,0.25387371]
[1742606303766,0.23846691,84299.0,84298.0,0.32727379]
[1742606303971,0.23946691,84299.0,84298.0,0.32727379]
[1742606304973,0.12179231,84299.0,84298.0,0.32727379]
[1742606307084,0.12179041,84299.0,84298.0,0.32727379]
[1742606308872,0.12179041,84299.0,84298.0,0.44255379]
[1742606310178,0.00312001,84299.0,84298.0,0.44255379]
[1742606310582,0.12179041,84299.0,84298.0,0.44255379]
[1742606310784,0.00312001,84299.0,84298.0,0.44255379]
[1742606311176,0.12179041,84299.0,84298.0,0.44255379]
[1742606311381,0.00312001,84299.0,84298.0,0.44255379]
[1742606311779,0.12179041,84299.0,84298.0,0.44255379]
[1742606312386,0.00312001,84299.0,84298.0,0.44255379]
[1742606312685,0.002,84299.0,84298.0,0.44255379]
[1742606312886,0.00312001,84299.0,84298.0,0.44255379]
[1742606313087,0.002,84299.0,84298.0,0.44255379]
[1742606315181,0.00312001,84299.0,84298.0,0.44255379]
[1742606316686,0.00316,84299.0,84298.0,0.44255379]
[1742606319287,0.002,84299.0,84298.0,0.44255379]
[1742606319682,0.00320001,84299.0,84298.0,0.44255379]
[1742606320989,0.12187041,84299.0,84298.0,0.44255379]
[1742606323285,0.18747041,84299.0,84298.0,0.32727379]
[1742606323487,0.18747041,84299.0,84298.0,0.44255379]
[1742606324992,0.18747041,84299.0,84298.0,0.32727379]
[1742606325190,0.18747041,84299.0,84298.0,0.44255379]
[1742606328886,0.18747041,84299.0,84298.0,0.32727379]
[1742606329896,0.18747041,84299.0,84298.0,0.08994779]
[1742606330591,0.18747041,84299.0,84298.0,0.05774779]
[1742606332392,0.18747041,84299.0,84298.0,0.02524779]
[1742606334600,0.18747041,84299.0,84298.0,0.14391959]
[1742606334896,0.18747041,84299.0,84298.0,0.02524779]
[1742606335395,0.18747041,84299.0,84298.0,0.14391959]
[1742606335897,0.18747041,84299.0,84298.0,0.17561959]
[1742606338089,0.18747041,84299.0,84298.0,0.04824771]
[1742606338496,0.18747041,84299.0,84298.0,0.16691951]
[1742606338692,0.18747041,84299.0,84298.0,0.04824771]
[1742606340400,0.18747041,84299.0,84298.0,0.16691951]
[1742606341393,0.18747041,84299.0,84298.0,0.04824771]
[1742606341593,0.18747041,84299.0,84298.0,0.16691951]
[1742606341996,0.18747041,84299.0,84298.0,0.19741951]
[1742606343719,0.18747041,84299.0,84298.0,0.01594771]
[1742606343897,0.1186817,84291.0,84290.0,0.11886096]
[1742606344096,0.1200417,84291.0,84290.0,0.11954096]
[1742606344296,0.1836417,84291.0,84290.0,0.00085786]
[1742606344491,0.1836417,84291.0,84290.0,0.11954096]
[1742606344691,0.1836417,84291.0,84290.0,0.00085786]
[1742606345205,0.2151417,84291.0,84290.0,0.05216702]
[1742606345400,0.2151417,84291.0,84290.0,0.03245786]
[1742606346104,0.2151417,84291.0,84290.0,0.20294986]
[1742606346898,0.2161417,84291.0,84290.0,0.20294986]
[1742606348507,0.1834417,84291.0,84290.0,0.20294986]
[1742606348703,0.1834417,84291.0,84290.0,0.08426676]
[1742606349506,0.5442417,84291.0,84290.0,0.20294986]
[1742606350505,0.39506,84291.0,84290.0,0.20294986]
[1742606350698,0.5137417,84291.0,84290.0,0.20294986]
[1742606351320,0.1529417,84291.0,84290.0,0.20294986]
[1742606351713,0.1220417,84291.0,84290.0,0.20294986]
[1742606354311,0.1220417,84291.0,84290.0,0.56374986]
[1742606357299,0.00336,84291.0,84290.0,0.56374986]
[1742606357499,0.0593381,84295.0,84292.0,0.1780167]
[1742606357711,0.1780155,84295.0,84294.0,0.1186774]
[1742606358012,0.1792955,84295.0,84294.0,0.1193174]
[1742606358208,0.1792955,84295.0,84294.0,0.1830174]
[1742606358808,0.1802955,84295.0,84294.0,0.1830174]
[1742606359010,0.2113955,84295.0,84294.0,0.1830174]
[1742606359815,0.2123955,84295.0,84294.0,0.1830174]
[1742606360513,0.2123955,84295.0,84294.0,0.1840174]
[1742606365316,0.1186817,84291.0,84290.0,0.0201089]
[1742606365514,0.1186873,84287.0,84286.0,0.0642]
[1742606365722,0.1201673,84287.0,84286.0,0.0648]
[1742606365912,0.1815673,84287.0,84286.0,0.1834887]
[1742606366309,0.1815673,84287.0,84286.0,0.20306043]
[1742606367113,0.1825673,84287.0,84286.0,0.20406043]
[1742606368319,0.1835673,84287.0,84286.0,0.20506043]
[1742606371012,0.1835673,84287.0,84286.0,0.08637173]
[1742606371627,0.1835673,84287.0,84286.0,0.20506043]
[1742606372222,0.1835673,84287.0,84286.0,0.08637173]
[1742606375934,0.1835673,84287.0,84286.0,0.05477173]
[1742606377539,0.1835673,84287.0,84286.0,0.20486043]
[1742606390548,0.1835673,84287.0,84286.0,0.13806222]
[1742606391245,0.1835673,84287.0,84286.0,0.15835204]
[1742606393844,0.1835673,84287.0,84286.0,0.18935204]
[1742606394250,0.06488,84287.0,84286.0,0.55015204]
[1742606394549,0.1820873,84287.0,84286.0,0.55015204]
[1742606394939,0.18372731,84287.0,84286.0,0.55015204]
[1742606395952,0.00364001,84287.0,84286.0,0.55015204]
[1742606396144,0.1206873,84287.0,84286.0,0.55015204]
[1742606396343,0.12240731,84287.0,84286.0,0.55015204]
[1742606400746,0.00372001,84287.0,84286.0,0.55015204]
[1742606400948,0.002,84287.0,84286.0,0.55015204]
[1742606402959,0.1206873,84287.0,84286.0,0.55015204]
[1742606404557,0.002,84287.0,84286.0,0.55015204]
[1742606404862,0.0593394,84293.0,84292.0,0.1186788]
[1742606405066,0.2373576,84293.0,84292.0,0.2932588]
[1742606405357,0.27199761,84293.0,84292.0,0.2932588]
[1742606405564,0.27199761,84293.0,84292.0,0.3263588]
[1742606405954,0.27299761,84293.0,84292.0,0.3263588]
[1742606407970,0.27299761,84293.0,84292.0,0.6871588]
[1742606421067,0.27299761,84293.0,84292.0,0.5719188]
[1742606421470,0.27299761,84293.0,84292.0,0.6034188]
[1742606421873,0.27299761,84293.0,84292.0,0.42014]
[1742606428071,0.27299761,84293.0,84292.0,0.05934]
[1742606429776,0.27299761,84293.0,84292.0,0.12244]
[1742606436971,0.27299761,84293.0,84292.0,0.05934]
[1742606437781,0.27299761,84293.0,84292.0,0.12204]
[1742606442284,0.27299761,84293.0,84292.0,0.0627]
[1742606442673,0.27299761,84293.0,84292.0,0.1813803]
[1742606446289,0.27299761,84293.0,84292.0,0.0627]
[1742606447572,0.27299761,84293.0,84292.0,0.1813803]
[1742606448472,0.27299761,84293.0,84292.0,0.0627]
[1742606452181,0.1186873,84287.0,84286.0,0.02028982]
[1742606452384,0.1186943,84282.0,84281.0,0.21288508]
[1742606452589,0.12041431,84282.0,84281.0,0.21288508]
[1742606452790,0.15131431,84282.0,84281.0,0.21288508]
[1742606453490,0.18341431,84282.0,84281.0,0.23728414]
[1742606454184,0.18341431,84282.0,84281.0,0.38777984]
[1742606454384,0.18341431,84282.0,84281.0,0.29998414]
[1742606454989,0.18441431,84282.0,84281.0,0.08709906]
[1742606455191,0.18441431,84282.0,84281.0,0.12039906]
[1742606455892,0.18541431,84282.0,84281.0,0.12139906]
[1742606460888,0.18541431,84282.0,84281.0,0.24009476]
[1742606466698,0.18541431,84282.0,84281.0,0.12139906]
[1742606467089,0.18541431,84282.0,84281.0,0.24009476]
[1742606472991,0.18541431,84282.0,84281.0,0.12139906]
[1742606474003,0.18541431,84282.0,84281.0,0.09049906]
[1742606474203,0.18541431,84282.0,84281.0,0.02539906]
[1742606477099,0.18541431,84282.0,84281.0,0.001]
[1742606480508,0.18541431,84282.0,84281.0,0.02375137]
[1742606482211,0.1186972,84280.0,84279.0,0.062]
[1742606482511,0.12033721,84280.0,84279.0,0.062]
[1742606482714,0.18323721,84280.0,84279.0,0.062]
[1742606483509,0.18423721,84280.0,84279.0,0.063]
[1742606483904,0.18423721,84280.0,84279.0,0.08550327]
[1742606484110,0.18523721,84280.0,84279.0,0.08550327]
[1742606487214,0.21653721,84280.0,84279.0,0.08550327]
[1742606490210,0.21653721,84280.0,84279.0,0.02350327]
[1742606490612,0.1187126,84269.0,84268.0,0.0593569]
[1742606490815,0.1203926,84269.0,84268.0,0.2112701]
[1742606491016,0.1529926,84269.0,84268.0,0.2112701]
[1742606491218,0.1529926,84269.0,84268.0,0.2428701]
[1742606491816,0.1842926,84269.0,84268.0,0.2744701]
[1742606492017,0.1852926,84269.0,84268.0,0.2744701]
[1742606492211,0.1213926,84269.0,84268.0,0.30530065]
[1742606492715,0.1223926,84269.0,84268.0,0.30530065]
[1742606496111,0.1223926,84269.0,84268.0,0.66610065]
[1742606504021,0.1224726,84269.0,84268.0,0.66610065]
[1742606504215,0.1224726,84269.0,84268.0,0.66794065]
[1742606504216,0.00376,84269.0,84268.0,0.66794065]
[1742606504412,0.00208,84269.0,84268.0,0.66794065]
[1742606504924,0.1207926,84269.0,84268.0,0.66794065]
[1742606505325,0.00208,84269.0,84268.0,0.66794065]
[1742606505530,0.0625,84279.0,84273.0,0.0593533]
[1742606505712,0.00164001,84279.0,84278.0,0.4795]
[1742606505918,0.0250934,84287.0,84286.0,0.1186887]
[1742606506118,0.00164001,84287.0,84286.0,0.1186887]
[1742606506424,8e-05,84292.0,84289.0,0.1186845]
[1742606506622,0.00025796,84290.0,84289.0,0.1186845]
[1742606506921,0.00025796,84290.0,84289.0,0.1809845]
[1742606507624,0.00017796,84290.0,84289.0,0.1809845]
[1742606508326,0.00117796,84290.0,84289.0,0.1819845]
[1742606508627,0.00117796,84290.0,84289.0,0.2971045]
[1742606508817,0.00289797,84290.0,84289.0,0.2971045]
[1742606509019,0.00389797,84290.0,84289.0,0.2981045]
[1742606509417,0.00217796,84290.0,84289.0,0.2981045]
[1742606510327,0.12258107,84290.0,84289.0,0.2981045]
[1742606511028,0.15308107,84290.0,84289.0,0.2981045]
[1742606511613,0.15308107,84290.0,84289.0,0.1829845]
[1742606512318,0.18468107,84290.0,84289.0,0.1829845]
[1742606513518,0.18468107,84290.0,84289.0,0.5437845]
[1742606513718,0.18296106,84290.0,84289.0,0.5437845]
[1742606514721,0.18460107,84290.0,84289.0,0.5437845]
[1742606515218,0.18460107,84290.0,84289.0,0.6589045]
[1742606518025,0.18296106,84290.0,84289.0,0.54022]
[1742606518235,0.18468107,84290.0,84289.0,0.54022]
[1742606518621,0.18468107,84290.0,84289.0,0.17942]
[1742606519932,0.18468107,84290.0,84289.0,0.11712]
[1742606520830,0.18468107,84290.0,84289.0,0.002]
[1742606522331,0.21568107,84290.0,84289.0,0.002]
[1742606525927,0.21568107,84290.0,84289.0,0.1206845]
[1742606528528,0.21568107,84290.0,84289.0,0.1513845]
[1742606532931,0.21568107,84290.0,84289.0,0.002]
[1742606533443,0.1186859,84288.0,84287.0,0.1807864]
[1742606533741,0.12032591,84288.0,84287.0,0.1807864]
[1742606533935,0.18562591,84288.0,84287.0,0.1807864]
[1742606534526,0.18662591,84288.0,84287.0,0.1807864]
[1742606534841,0.18762591,84288.0,84287.0,0.0631]
[1742606535637,0.18762591,84288.0,84287.0,0.001]
[1742606539647,0.21156365,84288.0,84287.0,0.001]
[1742606541545,0.18762591,84288.0,84287.0,0.001]
[1742606543545,0.30270591,84288.0,84287.0,0.00024046]
[1742606546351,0.30270591,84288.0,84287.0,0.02755241]
[1742606549059,0.30270591,84288.0,84287.0,0.00024046]
[1742606553459,0.1186873,84287.0,84286.0,0.00636988]
[1742606553663,0.1186943,84282.0,84281.0,0.0951]
[1742606553862,0.12041431,84282.0,84281.0,0.0951]
[1742606554057,0.18461431,84282.0,84281.0,0.0951]
[1742606554453,0.18461431,84282.0,84281.0,0.12251787]
[1742606555764,0.18561431,84282.0,84281.0,0.12251787]
[1742606556355,0.18661431,84282.0,84281.0,0.12251787]
[1742606556962,0.18661431,84282.0,84281.0,0.05571464]
[1742606560270,0.18661431,84282.0,84281.0,0.11691464]
[1742606560672,0.21055205,84282.0,84281.0,0.11691464]
[1742606561876,0.21055205,84282.0,84281.0,0.08631464]
[1742606562178,0.18661431,84282.0,84281.0,0.05571464]
[1742606562373,0.18661431,84282.0,84281.0,0.08631464]
[1742606562769,0.21055205,84282.0,84281.0,0.08631464]
[1742606562971,0.21055205,84282.0,84281.0,0.05571464]
[1742606563671,0.1186972,84280.0,84279.0,0.13821237]
[1742606563876,0.12033721,84280.0,84279.0,0.17111237]
[1742606564077,0.18433721,84280.0,84279.0,0.14051237]
[1742606564370,0.18433721,84280.0,84279.0,0.0329]
[1742606564977,0.18433721,84280.0,84279.0,0.1515986]
[1742606565362,0.18433721,84280.0,84279.0,0.1821986]
[1742606565567,0.18533721,84280.0,84279.0,0.1821986]
[1742606565767,0.18633721,84280.0,84279.0,0.1821986]
[1742606566176,0.18633721,84280.0,84279.0,0.09163267]
[1742606566771,0.18633721,84280.0,84279.0,0.21033127]
[1742606569170,0.18633721,84280.0,84279.0,0.24163127]
[1742606578378,0.18633721,84280.0,84279.0,0.14683127]
[1742606578783,0.18633721,84280.0,84279.0,0.02813267]
[1742606579082,0.1186986,84279.0,84278.0,0.24728895]
[1742606579288,0.12033861,84279.0,84278.0,0.24728895]
[1742606579487,0.18233861,84279.0,84278.0,0.24728895]
[1742606579692,0.18233861,84279.0,84278.0,0.27517722]
[1742606580180,0.18233861,84279.0,84278.0,0.33677722]
[1742606580488,0.18333861,84279.0,84278.0,0.33677722]
[1742606580784,0.18433861,84279.0,84278.0,0.33677722]
[1742606580985,0.18433861,84279.0,84278.0,0.45547722]
[1742606582378,0.18433861,84279.0,84278.0,0.42487722]
[1742606582885,0.18433861,84279.0,84278.0,0.27517722]
[1742606585089,0.18433861,84279.0,84278.0,0.39387722]
[1742606585893,0.18433861,84279.0,84278.0,0.45517722]
[1742606597202,0.18433861,84279.0,84278.0,0.42457722]
[1742606597403,0.18433861,84279.0,84278.0,0.39387722]
[1742606598803,0.18433861,84279.0,84278.0,0.45677722]
[1742606600502,0.1826986,84279.0,84278.0,0.45677722]
[1742606600705,0.18433861,84279.0,84278.0,0.45677722]
[1742606603114,0.06564001,84279.0,84278.0,0.45677722]
[1742606603300,0.064,84279.0,84278.0,0.45677722]
[1742606604010,0.1826986,84279.0,84278.0,0.45677722]
[1742606604314,0.18441861,84279.0,84278.0,0.45677722]
[1742606605013,0.18441861,84279.0,84278.0,0.81757722]
[1742606606509,0.05951976,84290.0,84284.0,0.0593456]
[1742606606703,0.11886106,84290.0,84289.0,0.1186845]
[1742606606912,0.00017796,84290.0,84289.0,0.1192845]
[1742606607117,0.00017796,84290.0,84289.0,0.1819845]
[1742606608818,0.00117796,84290.0,84289.0,0.1819845]
[1742606609312,0.00133796,84290.0,84289.0,0.1819845]
[1742606609513,0.12102106,84290.0,84289.0,0.1819845]
[1742606609712,0.18422106,84290.0,84289.0,0.1819845]
[1742606610121,0.18422106,84290.0,84289.0,0.5427845]
[1742606610420,0.18522106,84290.0,84289.0,0.5427845]
[1742606612813,0.18522106,84290.0,84289.0,0.6577845]
[1742606623928,0.18522106,84290.0,84289.0,0.6577445]
[1742606625535,0.06653796,84290.0,84289.0,0.6577445]
[1742606625726,0.06537796,84290.0,84289.0,0.6577445]
[1742606625926,0.06653796,84290.0,84289.0,0.6577445]
[1742606626123,0.06537796,84290.0,84289.0,0.6577445]
[1742606626323,0.06653796,84290.0,84289.0,0.6577445]
[1742606627133,0.18522106,84290.0,84289.0,0.0006]
[1742606627333,0.1186929,84283.0,84282.0,0.2336538]
[1742606627535,0.11989291,84283.0,84282.0,0.2342538]
[1742606627721,0.18369291,84283.0,84282.0,0.2342538]
[1742606627925,0.1836529,84283.0,84282.0,0.2342538]
[1742606628521,0.1836529,84283.0,84282.0,0.1192938]
[1742606628724,0.1846529,84283.0,84282.0,0.1192938]
[1742606629737,0.1856529,84283.0,84282.0,0.1192938]
[1742606630128,0.1844929,84283.0,84282.0,0.1192938]
[1742606631034,0.18569291,84283.0,84282.0,0.1192938]
[1742606637633,0.21619291,84283.0,84282.0,0.1192938]
[1742606641441,0.21619291,84283.0,84282.0,0.1518938]
[1742606641637,0.18569291,84283.0,84282.0,0.1518938]
[1742606641841,0.18569291,84283.0,84282.0,0.1828938]
[1742606644146,0.18569291,84283.0,84282.0,0.2978538]
[1742606646044,0.18569291,84283.0,84282.0,0.1828938]
[1742606646245,0.18569291,84283.0,84282.0,0.2978538]
[1742606652748,0.18569291,84283.0,84282.0,0.6586538]
[1742606656054,0.18569291,84283.0,84282.0,0.2978538]
[1742606656648,0.18569291,84283.0,84282.0,0.6586538]
[1742606664858,0.18569291,84283.0,84282.0,0.2978538]
[1742606665061,0.18569291,84283.0,84282.0,0.6586538]
[1742606670661,0.18569291,84283.0,84282.0,0.2978538]
[1742606670864,0.18569291,84283.0,84282.0,0.6586538]
[1742606674362,0.18569291,84283.0,84282.0,0.2978538]
[1742606674565,0.18569291,84283.0,84282.0,0.6586538]
[1742606676964,0.18569291,84283.0,84282.0,0.2978538]
[1742606677262,0.18569291,84283.0,84282.0,0.6586538]
[1742606677463,0.18569291,84283.0,84282.0,0.2978538]
[1742606677664,0.18569291,84283.0,84282.0,0.6586538]
[1742606679271,0.18569291,84283.0,84282.0,0.2978538]
[1742606679472,0.18569291,84283.0,84282.0,0.6586538]
[1742606680775,0.18569291,84283.0,84282.0,0.2978538]
[1742606681065,0.18569291,84283.0,84282.0,0.6586538]
[1742606681274,0.18569291,84283.0,84282.0,0.2978538]
[1742606681461,0.18569291,84283.0,84282.0,0.6586538]
[1742606681873,0.18569291,84283.0,84282.0,0.2978538]
[1742606682074,0.18569291,84283.0,84282.0,0.6586538]
[1742606683670,0.18569291,84283.0,84282.0,0.5436938]
[1742606683868,0.18569291,84283.0,84282.0,0.6586138]
[1742606684470,0.18569291,84283.0,84282.0,0.5436938]
[1742606684671,0.18569291,84283.0,84282.0,0.6586138]
[1742606689477,0.18569291,84283.0,84282.0,0.2978138]
[1742606689674,0.18569291,84283.0,84282.0,0.6586138]
[1742606698185,0.18569291,84283.0,84282.0,0.2978138]
[1742606698383,0.18569291,84283.0,84282.0,0.6586138]
[1742606698582,0.18569291,84283.0,84282.0,0.2978138]
[1742606698786,0.18569291,84283.0,84282.0,0.6586138]
[1742606700581,0.21889291,84283.0,84282.0,0.6586138]
[1742606702181,0.21889291,84283.0,84282.0,0.2978138]
[1742606702394,0.21889291,84283.0,84282.0,0.6586138]